Workbook

Sheet Spisak namirnica
M1: =izračunavanja!M9 -> MLEČNI PROIZVODI UKUPNO
B2: Spisak namirnica
C3: Gotovo | D3: STAVKA | E3: PRODAVNICA | F3: KATEGORIJA | G3: KOL. | H3: JEDINICA | I3: CENA PO JEDINICI | J3: UKUPNO | K3: KOMENTAR | M3: =izračunavanja!L9 -> 37
C4: 1 | D4: Pomorandže | E4: Namirnica | F4: Proizvod | G4: 2 | H4: kg | I4: 2.99 RSD | J4: =IFERROR(Lista[KOL.]*Lista[CENA PO JEDINICI],"") -> 5.98 RSD | M4: =izračunavanja!M8 -> PROIZVOD UKUPNO
D5: Jabuke | E5: Voćnjak | F5: Proizvod | G5: 3 | H5: kg | I5: 1.99 RSD | J5: =IFERROR(Lista[KOL.]*Lista[CENA PO JEDINICI],"") -> 5.97 RSD | K5: Imam kupon | M5: =izračunavanja!L8 -> 45
D6: Banane | E6: Namirnica | F6: Proizvod | G6: 1 | H6: veza | I6: 3.99 RSD | J6: =IFERROR(Lista[KOL.]*Lista[CENA PO JEDINICI],"") -> 3.99 RSD
D7: Zelena salata | E7: Pijaca | F7: Proizvod | G7: 2 | H7: glavica | I7: 2.29 RSD | J7: =IFERROR(Lista[KOL.]*Lista[CENA PO JEDINICI],"") -> 4.58 RSD | M7: =izračunavanja!M7 -> MESO UKUPNO
D8: Paradajz | E8: Pijaca | F8: Proizvod | G8: 4 | H8: kg | I8: 3.49 RSD | J8: =IFERROR(Lista[KOL.]*Lista[CENA PO JEDINICI],"") -> 13.96 RSD | M8: =izračunavanja!L7 -> 80
D9: Bundeva | E9: Pijaca | F9: Proizvod | G9: 2 | H9: komad | I9: 1.50 RSD | J9: =IFERROR(Lista[KOL.]*Lista[CENA PO JEDINICI],"") -> 3.00 RSD
D10: Celer | E10: Namirnica | F10: Proizvod | G10: 2 | H10: veza | I10: 1.99 RSD | J10: =IFERROR(Lista[KOL.]*Lista[CENA PO JEDINICI],"") -> 3.98 RSD | M10: =izračunavanja!M6 -> PLODOVI MORA UKUPNO
D11: Krastavac | E11: Pijaca | F11: Proizvod | G11: 1 | H11: kg | I11: 2.29 RSD | J11: =IFERROR(Lista[KOL.]*Lista[CENA PO JEDINICI],"") -> 2.29 RSD | M11: =izračunavanja!L6 -> 109
D12: Pečurke | E12: Namirnica | F12: Proizvod | G12: 0.5 | H12: kg | I12: 2.25 RSD | J12: =IFERROR(Lista[KOL.]*Lista[CENA PO JEDINICI],"") -> 1.13 RSD | K12: Veliki šampinjoni
D13: Mleko | E13: Isporuka na kućnu adresu | F13: Mlečni proizvodi | G13: 2 | H13: l | I13: 3.99 RSD | J13: =IFERROR(Lista[KOL.]*Lista[CENA PO JEDINICI],"") -> 7.98 RSD | M13: =izračunavanja!M3 -> DRUGI ZBIR
D14: Sir | E14: Isporuka na kućnu adresu | F14: Mlečni proizvodi | G14: 1 | H14: kg | I14: 9.99 RSD | J14: =IFERROR(Lista[KOL.]*Lista[CENA PO JEDINICI],"") -> 9.99 RSD | K14: Ponuda žutih sireva | M14: =izračunavanja!L3 -> 0
D15: Jaja | E15: Isporuka na kućnu adresu | F15: Mlečni proizvodi | G15: 2 | H15: 12 kom. | I15: 3.50 RSD | J15: =IFERROR(Lista[KOL.]*Lista[CENA PO JEDINICI],"") -> 7.00 RSD
D16: Sitan sir | E16: Isporuka na kućnu adresu | F16: Mlečni proizvodi | G16: 1 | H16: 1 kg | I16: 3.89 RSD | J16: =IFERROR(Lista[KOL.]*Lista[CENA PO JEDINICI],"") -> 3.89 RSD | M16: =izračunavanja!M4 -> UKUPNO NAMIRNICA
D17: Kisela pavlaka | E17: Isporuka na kućnu adresu | F17: Mlečni proizvodi | G17: 1 | H17: 180 g | I17: 2.99 RSD | J17: =IFERROR(Lista[KOL.]*Lista[CENA PO JEDINICI],"") -> 2.99 RSD | M17: =Ukupno_Namirnica -> 271
D18: Jogurt | E18: Namirnica | F18: Mlečni proizvodi | G18: 1 | H18: 1 kg | I18: 4.99 RSD | J18: =IFERROR(Lista[KOL.]*Lista[CENA PO JEDINICI],"") -> 4.99 RSD | K18: Grčki sa medom
D19: Govedina | E19: Pijaca | F19: Meso | G19: 10 | H19: kg | I19: 7.99 RSD | J19: =IFERROR(Lista[KOL.]*Lista[CENA PO JEDINICI],"") -> 79.90 RSD | K19: Fileti rolovani slaninom
D20: Divlji losos | E20: Riblja pijaca | F20: Plodovi mora | G20: 6 | H20: kg | I20: 8.99 RSD | J20: =IFERROR(Lista[KOL.]*Lista[CENA PO JEDINICI],"") -> 53.94 RSD
D21: Noge kraljevske krabe | E21: Riblja pijaca | F21: Plodovi mora | G21: 5 | H21: kg | I21: 10.99 RSD | J21: =IFERROR(Lista[KOL.]*Lista[CENA PO JEDINICI],"") -> 54.95 RSD

Sheet izračunavanja (hidden)
A1: *** List ostaje skriven ***
K3: =SUM(Lista[UKUPNO])-SUM(K6:K9) -> 0.00 RSD | L3: =ROUND(K3,0) -> 0 RSD | M3: DRUGI ZBIR
L4: =ROUNDUP(SUM(Lista[UKUPNO]),0) -> 271 RSD | M4: UKUPNO NAMIRNICA
E6: =IFERROR(INDEX(Lista[KATEGORIJA],MATCH(,COUNTIF($E$5:E5,Lista[KATEGORIJA]),)),"") -> Proizvod | F6: =SUMIFS(Lista[UKUPNO],Lista[KATEGORIJA],E6) -> 44.875 | G6: =F6+ROW()/1000000 -> 44.875006 | H6: =LARGE($G$6:$G$21,1) -> 108.890009 | I6: =MATCH(H6,$G$6:$G$21,0) -> 4 | J6: =INDEX($E$6:$E$21,$I6) -> Plodovi mora | K6: =INDEX($F$6:$F$21,$I6) -> 108.89 RSD | L6: =ROUND(K6,0) -> 109 RSD | M6: =UPPER(J6) & " UKUPNO" -> PLODOVI MORA UKUPNO
E7: =IFERROR(INDEX(Lista[KATEGORIJA],MATCH(,COUNTIF($E$5:E6,Lista[KATEGORIJA]),)),"") -> Mlečni proizvodi | F7: =SUMIFS(Lista[UKUPNO],Lista[KATEGORIJA],E7) -> 36.84 | G7: =F7+ROW()/1000000 -> 36.840007 | H7: =LARGE($G$6:$G$21,2) -> 79.900008 | I7: =MATCH(H7,$G$6:$G$21,0) -> 3 | J7: =INDEX($E$6:$E$21,$I7) -> Meso | K7: =INDEX($F$6:$F$21,$I7) -> 79.90 RSD | L7: =ROUND(K7,0) -> 80 RSD | M7: =UPPER(J7) & " UKUPNO" -> MESO UKUPNO
E8: =IFERROR(INDEX(Lista[KATEGORIJA],MATCH(,COUNTIF($E$5:E7,Lista[KATEGORIJA]),)),"") -> Meso | F8: =SUMIFS(Lista[UKUPNO],Lista[KATEGORIJA],E8) -> 79.9 | G8: 79.900008 | H8: =LARGE($G$6:$G$21,3) -> 44.875006 | I8: =MATCH(H8,$G$6:$G$21,0) -> 1 | J8: =INDEX($E$6:$E$21,$I8) -> Proizvod | K8: =INDEX($F$6:$F$21,$I8) -> 44.88 RSD | L8: =ROUND(K8,0) -> 45 RSD | M8: =UPPER(J8) & " UKUPNO" -> PROIZVOD UKUPNO
E9: =IFERROR(INDEX(Lista[KATEGORIJA],MATCH(,COUNTIF($E$5:E8,Lista[KATEGORIJA]),)),"") -> Plodovi mora | F9: =SUMIFS(Lista[UKUPNO],Lista[KATEGORIJA],E9) -> 108.89 | G9: 108.890009 | H9: =LARGE($G$6:$G$21,4) -> 36.840007 | I9: =MATCH(H9,$G$6:$G$21,0) -> 2 | J9: =INDEX($E$6:$E$21,$I9) -> Mlečni proizvodi | K9: =INDEX($F$6:$F$21,$I9) -> 36.84 RSD | L9: =ROUND(K9,0) -> 37 RSD | M9: =UPPER(J9) & " UKUPNO" -> MLEČNI PROIZVODI UKUPNO
E10: =IFERROR(INDEX(Lista[KATEGORIJA],MATCH(,COUNTIF($E$5:E9,Lista[KATEGORIJA]),)),"") ->  | F10: =SUMIFS(Lista[UKUPNO],Lista[KATEGORIJA],E10) -> 0 | G10: 1e-05
E11: =IFERROR(INDEX(Lista[KATEGORIJA],MATCH(,COUNTIF($E$5:E10,Lista[KATEGORIJA]),)),"") ->  | F11: =SUMIFS(Lista[UKUPNO],Lista[KATEGORIJA],E11) -> 0 | G11: 1.1e-05
E12: =IFERROR(INDEX(Lista[KATEGORIJA],MATCH(,COUNTIF($E$5:E11,Lista[KATEGORIJA]),)),"") ->  | F12: =SUMIFS(Lista[UKUPNO],Lista[KATEGORIJA],E12) -> 0 | G12: 1.2e-05
E13: =IFERROR(INDEX(Lista[KATEGORIJA],MATCH(,COUNTIF($E$5:E12,Lista[KATEGORIJA]),)),"") ->  | F13: =SUMIFS(Lista[UKUPNO],Lista[KATEGORIJA],E13) -> 0 | G13: 1.3e-05
E14: =IFERROR(INDEX(Lista[KATEGORIJA],MATCH(,COUNTIF($E$5:E13,Lista[KATEGORIJA]),)),"") ->  | F14: =SUMIFS(Lista[UKUPNO],Lista[KATEGORIJA],E14) -> 0 | G14: 1.4e-05
E15: =IFERROR(INDEX(Lista[KATEGORIJA],MATCH(,COUNTIF($E$5:E14,Lista[KATEGORIJA]),)),"") ->  | F15: =SUMIFS(Lista[UKUPNO],Lista[KATEGORIJA],E15) -> 0 | G15: 1.5e-05
E16: =IFERROR(INDEX(Lista[KATEGORIJA],MATCH(,COUNTIF($E$5:E15,Lista[KATEGORIJA]),)),"") ->  | F16: =SUMIFS(Lista[UKUPNO],Lista[KATEGORIJA],E16) -> 0 | G16: 1.6e-05
E17: =IFERROR(INDEX(Lista[KATEGORIJA],MATCH(,COUNTIF($E$5:E16,Lista[KATEGORIJA]),)),"") ->  | F17: =SUMIFS(Lista[UKUPNO],Lista[KATEGORIJA],E17) -> 0 | G17: 1.7e-05
E18: =IFERROR(INDEX(Lista[KATEGORIJA],MATCH(,COUNTIF($E$5:E17,Lista[KATEGORIJA]),)),"") ->  | F18: =SUMIFS(Lista[UKUPNO],Lista[KATEGORIJA],E18) -> 0 | G18: 1.8e-05
E19: =IFERROR(INDEX(Lista[KATEGORIJA],MATCH(,COUNTIF($E$5:E18,Lista[KATEGORIJA]),)),"") ->  | F19: =SUMIFS(Lista[UKUPNO],Lista[KATEGORIJA],E19) -> 0 | G19: 1.9e-05
E20: =IFERROR(INDEX(Lista[KATEGORIJA],MATCH(,COUNTIF($E$5:E19,Lista[KATEGORIJA]),)),"") ->  | F20: =SUMIFS(Lista[UKUPNO],Lista[KATEGORIJA],E20) -> 0 | G20: 2e-05
E21: =IFERROR(INDEX(Lista[KATEGORIJA],MATCH(,COUNTIF($E$5:E20,Lista[KATEGORIJA]),)),"") ->  | F21: =SUMIFS(Lista[UKUPNO],Lista[KATEGORIJA],E21) -> 0 | G21: 2.1e-05
